[Event "Svetozar Gligoric Masters 2022"]
[Site "Belgrade"]
[Date "2022.07.21"]
[Round "7.21"]
[White "Tisaj, Domen"]
[Black "Todev, Simeon"]
[Result "1-0"]
[ECO "E44"]
[WhiteElo "2355"]
[BlackElo "1954"]
[Annotator "ChessBase"]
[PlyCount "45"]
[EventDate "2022.07.18"]
[EventCountry "SRB"]
[SourceTitle "playchess.com"]
[Source "ChessBase"]
[SourceQuality "1"]
[TimeControl "40/5400+30:900+30"]

1. d4 Nf6 2. c4 e6 3. Nc3 Bb4 4. e3 b6 5. Nge2 Bb7 6. a3 Bxc3+ 7. Nxc3 d5 8. b4 dxc4 9. Bxc4 Bxg2 10. Rg1 Bd5 11. Bb5+ c6 12. Bd3 c5 13. Rxg7 cxd4 14. exd4 Nc6 15. Be3 Qc7 16. Rc1 Qxh2 17. Nxd5 Qh1+ 18. Kd2 Qxd5 19. Rg5 Ne4+ 20. Bxe4 Qxe4 21. f3 Qh4 22. Rxc6 Rd8 23. Qg1 1-0

[Event "Svetozar Gligoric Masters 2022"]
[Site "Belgrade"]
[Date "2022.07.21"]
[Round "7.22"]
[White "Sanket Chakravarty"]
[Black "Sharan, Rao"]
[Result "1-0"]
[ECO "A27"]
[WhiteElo "2209"]
[BlackElo "2342"]
[Annotator "TA"]
[PlyCount "91"]
[EventDate "2022.07.18"]
[EventCountry "SRB"]
[SourceTitle "playchess.com"]
[Source "ChessBase"]
[SourceQuality "1"]
[TimeControl "40/5400+30:900+30"]

{[%evp 9,91,24,27,20,30,37,36,41,50,43,50,41,58,27,72,6,8,0,0,0,-4,-24,-23,-41,-19,-49,-48,-120,-110,-133,-37,-41,-38,-41,-34,-39,-60,-61,-29,-52,0,0,0,-9,0,0,0,0,0,0,95,93,91,84,56,91,165,179,184,175,170,0,14,0,177,171,174,174,835,820,29974,29975,29975,29978,29977,29978,29985,29979,29987,29988,29990,29986,29992,29993]} 1. c4 e5 2. Nc3 Nc6 3. Nf3 g6 4. d4 exd4 5. Nxd4 Bg7 6. Nxc6 {A27: English Opening: Three Knights Variation.} dxc6 7. Qxd8+ Kxd8 8. Bg5+ {White is slightly better.} Nf6 {[%cal Bg8f6,Bf6d7,Bd7b6][%mdl 32]} 9. O-O-O+ Ke8 10. e4 Be6 {[%cal Bc8e6,Be6f5,Bf5g6][%mdl 32]} 11. Be2 Nd7 {[#]} 12. f4 $146 ({Better is} 12. Kc2 $16) ({Predecessor:} 12. Rd2 h6 13. Bh4 Ne5 14. Rhd1 g5 15. Bg3 Rc8 16. b3 h5 17. Kc2 Ng6 18. h3 {0-1 (51) Stahr,R (2101)-Graf,A (2628) Berlin 2011}) 12... Nb6 $11 13. c5 Nd7 14. f5 gxf5 15. exf5 Bxf5 16. Bh5 {Black must now prevent Rhe1+.} Nxc5 {Strongly threatening ...Nd3+.} 17. Rhe1+ Ne6 18. g4 (18. Re2 $15) 18... Bg6 $17 19. Ne4 b6 {Prevents Nc5.} (19... Kf8 $1 $17 {Threatens to win with ...Bxe4.} 20. Bd2 c5) 20. Nf6+ $15 Bxf6 21. Bxf6 Rg8 22. Bxg6 Rxg6 23. g5 Rc8 24. h4 h5 (24... h6 $1 $15) 25. b4 $11 a6 26. Kb2 Rb8 27. a4 c5 28. bxc5 bxc5+ 29. Kc3 a5 (29... Rg8 $11 {remains equal.}) 30. Rd5 $16 {0x0.0013b8b05fffdp-1022s more active pieces. The black rooks are badly placed.} Kf8 31. Rd7 Rb4 32. Red1 {[%cal Od7d8] Threatening mate with Rd8+! Dancing on a razor blade.} Rxf6 33. gxf6 {[%cal Od7d8][%mdl 4096] Endgame Intending Rd8+! and mate. KRR-KRN} Kg8 34. Rg1+ {[%mdl 1024] White has strong compensation.} Kf8 {[#]} 35. Rgd1 $2 (35. Rg5 $1 $18 {[%cal Rg5h5][%mdl 512]}) 35... Kg8 $1 $11 36. Rg1+ $2 (36. R1d5 $11 Rxh4 37. Re5) 36... Kf8 $18 {[#]} 37. Rg5 $1 {[%mdl 512]} Rxh4 {[#]} 38. Rxc5 $1 Rxa4 $2 (38... Rh3+ 39. Kd2 Rf3 40. Rxh5 (40. Rxa5 Rxf6 41. Rxh5 Ke8 $18) 40... Rxf6 41. Rxa5 Ke8) 39. Rxh5 {[%cal Rh5h8]} Kg8 {Inhibits Rh8+.} 40. Re7 {White mates.} Rg4 41. Re8+ Nf8 42. Rxa5 Rg3+ 43. Kd2 Rg2+ 44. Ke3 Rg3+ 45. Kf2 Rg6 {[#]} 46. Rxf8+ $1 {[%mdl 512] Weighted Error Value: White=0.15 (very precise) /Black=0.36} 1-0

[Event "Svetozar Gligoric Masters 2022"]
[Site "Belgrade"]
[Date "2022.07.21"]
[Round "7.23"]
[White "Gandhi, Anish"]
[Black "Ozer, Omer Faruk"]
[Result "0-1"]
[ECO "A05"]
[WhiteElo "2178"]
[BlackElo "2317"]
[Annotator "TA"]
[PlyCount "110"]
[EventDate "2022.07.18"]
[EventCountry "SRB"]
[SourceTitle "playchess.com"]
[Source "ChessBase"]
[SourceQuality "1"]
[TimeControl "40/5400+30:900+30"]

{[%evp 9,110,15,18,-8,-6,-7,-17,-7,0,0,2,-17,0,0,22,0,0,0,0,4,8,0,0,4,6,0,0,-14,-10,-22,6,-11,0,-4,19,23,17,18,12,0,0,-70,0,0,7,0,1,0,11,16,5,17,22,25,23,25,25,0,0,0,0,0,42,29,99,0,0,0,0,-229,-239,-237,-229,-287,-274,-364,-325,-372,-354,-371,-348,-289,-314,-364,-352,-962,-1000,-877,-926,-1321,-1058,-1533,-1160,-1405,-1328,-1955,-1568,-5273,-5197,-5114,-3661,-2125,-1939]} 1. Nf3 Nf6 2. g3 b5 3. a4 b4 4. Bg2 Bb7 5. O-O e6 6. b3 {A05: Réti Opening: 1 Nf3 Nf6.} Be7 7. Bb2 O-O 8. d3 {The position is equal.} c5 9. e4 d6 10. e5 dxe5 (10... Ne8 {looks sharper.} 11. exd6 Bf6 12. Bxf6 Qxf6 13. d7 Nxd7 14. Nbd2 Nd6) 11. Nxe5 {[#]} Nd5 $146 ({Predecessor:} 11... Bd5 12. Nd2 Qc7 13. Ndc4 Nc6 14. Nxc6 Qxc6 15. Ne5 Qb7 16. f3 Ne8 17. Qe2 Nd6 {0-1 (55) Konopleva,N (2145)-Berend,E (2290) Moscow 1990}) 12. Nd2 Nc6 13. Nxc6 Bxc6 14. Nc4 Rc8 15. Qg4 {[%csl Gb2][%cal Rg4g7] [#]} Bf6 16. Ne5 Ba8 17. Rfe1 g6 18. h4 Bg7 19. Rad1 Re8 20. Ba1 Rc7 21. Qe2 Bb7 22. h5 Qg5 23. hxg6 hxg6 24. Nf3 Qh6 25. Ne5 ({Better is} 25. Qd2 $11) 25... Rce7 (25... f5 $1 $15) 26. Ng4 Qh8 27. Bxg7 Qxg7 28. Qd2 g5 29. Ne3 Nc3 30. Rc1 {Black must now prevent Bxb7.} Bxg2 31. Kxg2 Qd4 32. Rh1 f6 $1 33. Rh6 Rh7 34. Rxh7 Kxh7 35. Rh1+ Kg6 36. Qe1 f5 (36... Re7 $1 $11 {remains equal.}) 37. Qg1 (37. Nc4 $16) 37... Rh8 $11 {Active counter play!} 38. Rxh8 Qxh8 39. Qh2 $2 {Black continues to play with concentration.} (39. Qe1 $11 {and White stays safe.}) 39... Qxh2+ $19 40. Kxh2 {[%mdl 4096] Endgame KN-KN} Ne2 41. Nc4 Nd4 42. Ne5+ {[#]} Kf6 $1 43. Nd7+ Ke7 44. Nxc5 Nxc2 45. g4 Kd6 ({But not} 45... fxg4 $2 46. d4 $19 (46. Kg3 $2 Kd6 $19)) 46. Nb7+ Kd5 47. gxf5 (47. f4 gxf4 48. g5) 47... exf5 {Black is clearly winning.} 48. Kg3 Ne1 49. d4 Nc2 50. Nc5 Nxd4 51. Nd3 Nc6 {Threatens to win with ...Kd4.} 52. f4 g4 {Strongly threatening ...Kd4.} 53. Nb2 Nd4 54. Nd3 a5 55. Nc1 Ke4 {Weighted Error Value: White=0.75/Black=0.25 (precise)} 0-1

[Event "Svetozar Gligoric Masters 2022"]
[Site "Belgrade"]
[Date "2022.07.21"]
[Round "7.24"]
[White "Korkmaz, Necmettin"]
[Black "Yordanov, Lachezar"]
[Result "0-1"]
[ECO "B23"]
[WhiteElo "2016"]
[BlackElo "2316"]
[Annotator "TA"]
[PlyCount "98"]
[EventDate "2022.07.18"]
[EventCountry "SRB"]
[SourceTitle "playchess.com"]
[Source "ChessBase"]
[SourceQuality "1"]
[TimeControl "40/5400+30:900+30"]

{[%evp 16,98,-11,-37,-37,-37,-37,-30,-36,-35,-30,-49,-49,-105,-87,-114,-102,-102,-97,-128,-87,-97,-94,-84,-29,-35,-45,-91,0,-16,-26,-16,-25,-6,0,-52,-58,-62,-58,-91,-25,-229,-222,-224,-223,-224,-222,-218,-187,-181,-195,-236,-231,-282,-279,-290,-272,-402,-402,-402,-397,-361,-360,-506,-504,-500,-495,-472,-461,-491,-472,-731,-723,-726,-704,-889,-867,-871,-870,-1576,-1562,-1562,-1595,-1033,-843]} 1. e4 c5 2. Nc3 d6 3. f4 g6 4. Nf3 Bg7 5. Bc4 Nc6 6. O-O e6 7. d3 Nge7 8. Qe1 O-O 9. f5 gxf5 $1 {[%mdl 4] is recently more successful than 9...d5. B23: Closed Sicilian: Lines without g3.} 10. Qh4 fxe4 11. dxe4 (11. Ng5 $2 h6 12. Ngxe4 d5 13. Bxh6 dxe4 $19) 11... Ng6 {Black has an edge.} 12. Qh5 Nce5 13. Be2 (13. Ng5 $2 h6 14. Nf3 Nxc4 $19) 13... Nxf3+ 14. Qxf3 (14. Rxf3 $15 Qh4 15. Qxh4 Nxh4 16. Rd3) 14... Bd7 {[#]} 15. Be3 $146 ({Predecessor:} 15. Qh5 Bc6 16. Bg5 Qb6 17. Rf3 Bd4+ 18. Kh1 f6 19. Bh6 Rf7 20. Bc4 Re8 21. Qh3 {1-0 (33) Mondry,M-Penkin,V (2042) ICCF email 2008}) 15... Bc6 16. Rad1 Qe7 17. Qh5 Rad8 18. Rd3 f6 {Prevents Bg5.} 19. Bc1 Rf7 (19... f5 $1 $17 {[%cal Rf5e4]} 20. exf5 Rxf5 21. Rxf5 exf5) 20. Rh3 Bh8 {[%cal Of6f5]} 21. Rff3 {Against f5} (21. Rg3 $15 {feels stronger.}) 21... Nf8 (21... f5 $1 $17 22. exf5 Bxf3 23. Rxf3 Bxc3) 22. Rfg3+ Rg7 23. Bh6 {[%mdl 64] [#] Pin} Rxg3 24. Rxg3+ Ng6 25. h4 (25. Bd3 $11) 25... Bg7 $15 26. Bxg7 Kxg7 ({Reject} 26... Qxg7 27. Bc4 Kf7 28. Qg4 $11) 27. Bc4 {[#]} Kh8 28. Rxg6 $2 {Loses the game.} (28. Bxe6 $1 $11 Qxe6 29. Rxg6) 28... Be8 $19 {[%mdl 64] Pin, Skewer} 29. Rg8+ Kxg8 30. Qg4+ Kh8 {[%cal Od6d5] Threatens to win with ...d5!} 31. Bxe6 {[%csl Ge6][%cal Rg4g8]} Bd7 32. Bxd7 Qxd7 {[%mdl 4096] Endgame KQR-KQN} 33. Qf3 Qe6 34. Nd5 Rf8 35. Nc3 f5 36. Qf4 (36. g4 {was worth a try.}) 36... Qe5 37. Qxe5+ dxe5 38. exf5 Rxf5 {KR-KN} 39. g3 (39. Nd5 $142) 39... b6 {Black is clearly winning.} 40. Kg2 h5 41. Ne4 Kg7 42. Nf2 Kf8 43. Kf1 (43. g4 $142 Rf4 44. Kg3) 43... Rf3 44. Kg2 Re3 45. Nd3 Re2+ 46. Kf3 Rxc2 47. Nxe5 Rxb2 48. Ng6+ Kg7 49. Nf4 Kh6 {Weighted Error Value: White=0.44/Black=0.14 (very precise)} 0-1

[Event "Svetozar Gligoric Masters 2022"]
[Site "Belgrade"]
[Date "2022.07.22"]
[Round "8.1"]
[White "Predke, Alexandr"]
[Black "Maksimovic, Bojan"]
[Result "1-0"]
[ECO "B30"]
[WhiteElo "2688"]
[BlackElo "2465"]
[Annotator "TA"]
[PlyCount "89"]
[EventDate "2022.07.18"]
[EventCountry "SRB"]
[SourceTitle "playchess.com"]
[Source "ChessBase"]
[SourceQuality "1"]
[TimeControl "40/5400+30:900+30"]

{[%evp 9,89,3,24,22,26,26,26,26,26,26,26,25,36,27,55,41,55,55,55,55,55,55,52,41,71,62,53,43,50,42,41,41,46,42,47,40,49,41,78,70,122,109,155,147,182,168,184,185,175,154,282,259,278,283,210,210,210,279,258,210,441,448,491,449,620,648,610,608,1197,1029,1123,1064,1361,1361,1081,783,778,774,736,628,572,558]} 1. e4 c5 2. Nf3 Nc6 3. Nc3 g6 4. Bb5 Bg7 5. d3 e5 6. Bg5 {B30: Sicilian: 2...Nc6 3 Bb5, lines without ...g6.} Nge7 {[#]} 7. h4 $146 {[%cal Bh2h4,Bh4h5][%mdl 32]} ({Predecessor:} 7. Nd5 h6 8. Bxe7 Nxe7 9. Bc4 d6 10. c3 O-O 11. h4 Rb8 12. h5 b5 13. Bb3 {½-½ (28) Aronian,L (2781)-Carlsen,M (2847) chess24.com INT 2021}) 7... h6 8. Bxe7 {White has an edge.} Nxe7 9. h5 g5 10. Bc4 d6 11. Nd2 {[%cal Bf3d2,Bd2f1,Bf1e3,Be3f5][%mdl 32]} Be6 12. Nf1 a6 13. Ne3 b5 14. Bb3 O-O 15. Ncd5 Nc6 16. c3 Kh8 17. Nf5 Rb8 18. Nde3 {Pair of Knights!} (18. Nxg7 Kxg7 19. Ne3 a5 $11) 18... Ne7 19. Nxe7 Qxe7 20. Bd5 Bd7 21. g4 a5 22. O-O Rfc8 23. Kg2 Qf8 24. Qf3 {Black is on the road to losing.} Be8 (24... Rc7 $14) 25. a3 {White is much more active.} a4 (25... Kg8 $142) 26. b3 $16 axb3 27. Bxb3 Ra8 28. Bd5 Ra7 29. c4 b4 (29... Rb8 $16 {keeps fighting.}) 30. axb4 $18 Rxa1 31. Rxa1 cxb4 32. Ra7 {[%cal Rd5f7] Against Qe7} Rb8 33. Nd1 {[%cal Be3d1,Bd1b2,Bb2d3][%mdl 32]} (33. Bxf7 b3 34. Nd1 (34. Bxe8 $2 Qxf3+ 35. Kxf3 b2 $19) 34... Bxf7 35. Rxf7 Qc8 $11) 33... b3 34. Nb2 f5 $2 {[#]} (34... Kh7 35. Qf5+ (35. Bxf7 Bxf7 36. Rxf7 Qc8 $16) 35... Kg8) 35. exf5 {White is clearly winning.} Qf6 {[%cal Oe5e4]} 36. Qe4 Qd8 37. d4 ({Inferior is} 37. f6 Qxf6 38. d4 Qf4 $11) 37... Qf6 38. Nd3 exd4 39. Re7 Ba4 40. Nb2 d3 41. Nxa4 d2 42. Re8+ Rxe8 43. Qxe8+ Qf8 44. Qxf8+ Bxf8 45. Nb2 {Weighted Error Value: White=0.04 (flawless) /Black=0.28 (precise)} 1-0

[Event "Svetozar Gligoric Masters 2022"]
[Site "Belgrade"]
[Date "2022.07.22"]
[Round "8.2"]
[White "Petrov, Nikita"]
[Black "Samant Aditya S"]
[Result "1-0"]
[ECO "A45"]
[WhiteElo "2558"]
[BlackElo "2431"]
[Annotator "TA"]
[PlyCount "113"]
[EventDate "2022.07.18"]
[EventCountry "SRB"]
[SourceTitle "playchess.com"]
[Source "ChessBase"]
[SourceQuality "1"]
[TimeControl "40/5400+30:900+30"]

{[%evp 9,113,-8,-8,-2,0,0,37,24,52,47,41,27,106,117,125,78,72,63,67,12,15,0,0,0,0,0,0,0,23,13,14,6,1,19,18,0,0,0,4,14,0,-34,-16,0,23,14,24,20,26,29,25,0,178,167,173,168,152,145,142,128,147,142,146,92,249,259,252,259,344,332,492,469,512,614,616,612,596,589,572,543,1537,1469,895,487,2366,2115,5920,9341,12818,9922,6211,5198,12835,12835,12837,12837,12839,12840,12840,12840,12843,12843,12845,12841,12845,12842]} 1. d4 Nf6 2. Bg5 c5 3. Bxf6 gxf6 4. d5 Qb6 5. Nd2 Qxb2 6. e4 {A45: Trompowsky Attack.} f5 7. Rb1 Qf6 8. Ngf3 {[#] White is slightly better.} fxe4 $146 ({Predecessor:} 8... d6 9. Bb5+ Nd7 10. Bxd7+ Kxd7 11. Qe2 Bh6 12. O-O Bxd2 13. Nxd2 Rg8 14. Rfe1 f4 {1-0 (49) Cempel,J (2252)-Bures,M (2169) Czech Republic 2006}) 9. Nxe4 Qf4 10. Bd3 {[%mdl 1024] White has compensation.} c4 (10... d6 $11 {remains equal.}) 11. g3 $16 Qc7 {[#]} 12. Be2 {0x0.00204e1195c0dp-1022s more active pieces.} (12. O-O $142 $1 cxd3 13. Nfg5) 12... Bg7 13. O-O {Strongly threatening d6.} (13. d6 {with more complications.} Qa5+ 14. Nfd2 e6 15. Bxc4 a6 16. Bd3) 13... d6 14. Rb4 (14. Re1 $14) 14... Nd7 $11 15. Rxc4 Qa5 16. Nh4 Nb6 17. Rxc8+ $1 Rxc8 18. Nf5 Qxd5 19. Nxg7+ {Pair of Knights!} Kf8 {Hoping for ...Qxd1.} 20. Qxd5 Nxd5 21. Nf5 Rxc2 22. Bf3 {[%cal Oe4d6]} Nb6 23. Re1 Rc7 24. Bh5 h6 $1 25. Nd2 Rc5 26. Bg4 Nc4 27. Nb3 Rc7 28. Nbd4 Ne5 29. Bh5 $36 {[%mdl 2048] Black is under pressure.} a6 30. a4 Nc6 $2 (30... Nc4 $11 {and Black is okay.}) 31. Nxc6 $18 bxc6 32. Rb1 {White wants to mate with Rb8+.} Kg8 33. Rb6 c5 34. Rxa6 c4 35. Bd1 $1 {Black must now prevent Bc2.} d5 36. Nxh6+ (36. f4 $142 $1) 36... Kf8 $2 {[#] This move loses the game for Black.} (36... Rxh6 $16 37. Rxh6 d4) 37. Nf5 $1 {Threatening mate with Ra8+.} Rc8 {Inhibits Ra8.} 38. Ra7 c3 {[#]} 39. Bc2 $1 Rh5 (39... Re8 $142 40. Rc7 e6) 40. Nxe7 {White is clearly winning.} Rc5 41. Nf5 Rxf5 42. Bxf5 c2 {[#]} 43. Bxc2 Rxc2 {[%mdl 4096] Endgame KR-KR} 44. a5 {[%cal Ba4a5,Ba5a6,Ba6a7][%mdl 32]} Ra2 45. a6 Kg7 46. Kf1 {Ke1 is the strong threat.} Kf6 (46... d4 $142 47. Ra8 d3) 47. Ra8 d4 48. a7 d3 49. Ke1 Kf5 50. h4 Kf6 51. g4 {[%cal Bg3g4,Bg4g5,Bg5g6][%mdl 32]} Kg7 52. g5 Kh7 53. Kd1 Kg7 54. f4 {[%cal Bf2f4,Bf4f5][%mdl 32]} Kh7 55. f5 Kg7 56. h5 Kh7 57. g6+ {Weighted Error Value: White=0.17 (very precise) /Black=0.28 (precise)} 1-0

[Event "Svetozar Gligoric Masters 2022"]
[Site "Belgrade"]
[Date "2022.07.22"]
[Round "8.3"]
[White "Rohith Krishna S"]
[Black "Koustav Chatterjee"]
[Result "0-1"]
[ECO "E48"]
[WhiteElo "2326"]
[BlackElo "2485"]
[Annotator "TA"]
[PlyCount "70"]
[EventDate "2022.07.18"]
[EventCountry "SRB"]
[SourceTitle "playchess.com"]
[Source "ChessBase"]
[SourceQuality "1"]
[TimeControl "40/5400+30:900+30"]

{[%evp 22,69,-6,-22,-17,-27,-27,-24,-23,-32,-36,-37,-23,-19,-5,-54,-47,-75,-78,-73,-75,-82,-75,-144,-173,-163,-68,-135,-140,-154,-144,-244,-239,-365,-257,-377,-361,-354,-357,-332,-319,-29985,-29986,-29993,-29994,-29994,-660,-29995,-29996,-29999]} 1. d4 Nf6 2. c4 e6 3. Nc3 Bb4 4. e3 O-O 5. Bd3 c5 6. Nge2 cxd4 7. exd4 d5 8. O-O dxc4 9. Bxc4 Nc6 10. Bg5 h6 11. Bh4 Be7 12. Rc1 b6 {E48: Nimzo-Indian: Rubinstein: 5 Bd3 d5 including 6 Ne2, but excluding 6 a3.} 13. a3 Bb7 14. Ba2 {[#]} Nh5 $146 {Black has an edge.} ({Predecessor:} 14... Qd7 15. Bxf6 Bxf6 16. d5 exd5 17. Nxd5 Qd6 18. Nxf6+ Qxf6 19. Nc3 Rad8 20. Qh5 Ne5 {½-½ (62) Sigurdsson,P (1894)-Vigfusson,V (2051) Reykjavik 2009}) 15. Bxe7 Nxe7 16. Qd3 Ng6 {[%cal Ob7g2] aiming for ...Bxg2!} 17. f4 Qh4 {[%cal Rg6f4]} 18. Bb1 (18. g3 Qh3 19. d5 (19. Rf2 Nhxf4 20. Nxf4 Nxf4 $15) 19... Nf6 $17) (18. f5 $1 $11 {was preferrable.} Qg4 19. g3 exf5 20. Qxf5 Qxf5 21. Rxf5) 18... Rad8 (18... Bxg2 $2 19. Kxg2 Nhxf4+ 20. Nxf4 Qxf4 21. Kh1 $18 (21. Rxf4 Nxf4+ 22. Kf3 Nxd3 $15)) 19. Rf2 Nf6 {...Ng4 is the strong threat.} 20. h3 {Prevents Ng4.} Ne7 {Black is more active.} 21. Ng3 Rd7 22. Rd2 (22. Bc2 $142) 22... Rfd8 $17 ({Don't play} 22... Qxf4 23. Rf1 (23. Nh5 Qf5 $11) 23... Qh4 24. Rxf6 $1 $18 {[%mdl 512]}) 23. Nce2 {[#]} g6 (23... g5 $1 $19 {[%cal Rg5f4]} 24. Qe3 Nfd5) 24. Rdc2 (24. Qe3 $15) 24... Nf5 25. Nxf5 exf5 ({Weaker is} 25... gxf5 26. Qe3 $17) 26. Qd2 (26. Qe3 $17) 26... Ba6 $40 {[%mdl 128] Black has strong attack.} 27. Rc6 (27. Ba2 $142) 27... Nh5 {[%cal Bf6h5,Bh5f4,Bf4h3,Bh3f2][%mdl 32]} 28. Ba2 (28. Bd3 $142 Bxd3 29. Qxd3) 28... Bxe2 29. Qxe2 Nxf4 ({Don't go for} 29... Qxf4 $2 30. d5 $19) 30. Qf3 Rxd4 {And now ...Rd3 would win.} 31. Rc7 $2 (31. Rc8 $19) 31... Rd3 32. Qf1 {[#]} Nxh3+ $1 33. Kh2 (33. Kh1 Rd2) 33... Nf2+ 34. Kg1 Rd2 {[%csl Gf2][%cal Rh4h1]} 35. Rxf7 Qh1# {Weighted Error Value: White=0.56/Black=0.09 (flawless)} 0-1

[Event "Svetozar Gligoric Masters 2022"]
[Site "Belgrade"]
[Date "2022.07.22"]
[Round "8.4"]
[White "Atalik, Suat"]
[Black "Erdogmus, Yagiz Kaan"]
[Result "1-0"]
[ECO "D75"]
[WhiteElo "2446"]
[BlackElo "2373"]
[Annotator "TA"]
[PlyCount "83"]
[EventDate "2022.07.18"]
[EventCountry "SRB"]
[SourceTitle "playchess.com"]
[Source "ChessBase"]
[SourceQuality "1"]
[TimeControl "40/5400+30:900+30"]

{[%evp 17,83,10,11,13,3,7,11,16,17,-9,10,0,81,78,97,107,202,210,189,206,193,188,187,197,144,183,160,19,22,0,141,137,154,149,134,137,264,273,281,260,288,290,283,281,288,293,287,290,312,312,368,159,150,124,429,347,383,391,387,353,6303,5383,3623,2743,29973,29973,29965,5535]} 1. d4 Nf6 2. c4 g6 3. Nc3 d5 4. cxd5 Nxd5 5. g3 Bg7 6. Bg2 Nxc3 7. bxc3 O-O 8. Nf3 c5 9. O-O Nc6 10. d5 {D75: Fianchetto Grünfeld: Main Line with 7...c5.} Na5 11. Bf4 e6 12. e4 {[#] The position is equal.} exd5 $146 ({Predecessor:} 12... Re8 13. Rc1 exd5 14. exd5 Bf5 15. Re1 Rxe1+ 16. Qxe1 Qe8 17. Qd1 Qd7 18. h3 Nc4 {½-½ (30) Martin Sanchez,C (2471)-Lebedev,V (2474) ICCF email 2018}) 13. Qxd5 Bxc3 14. Rac1 (14. Qxc5 Bxa1 15. Rxa1 b6 $17) 14... Bb4 (14... Qxd5 $11 15. exd5 Bb4) 15. Qe5 $1 $16 {[%mdl 1024] White has strong compensation. 0x0.0019e9e3f0bedp-1022s more active pieces. The black rooks are badly placed.} f6 16. Qa1 Qe7 (16... Be6 $16 {was necessary.}) 17. a3 $18 Nb3 18. Qb2 Nxc1 19. axb4 Nd3 20. Qb3+ Be6 21. Qxd3 {Black must now prevent Bd6.} cxb4 22. Bd6 {A strong pair of Bishops.} (22. e5 $16) 22... Rfd8 $11 23. Rd1 Qf7 (23... Qxd6 $11 24. Qxd6 Rxd6 25. Rxd6 b3) 24. e5 $16 {[%cal Be4e5,Be5e6,Be6e7][%mdl 32]} b3 25. Qd2 Rac8 26. Nd4 Bc4 (26... Bg4 $16 {keeps fighting.}) 27. e6 $18 Qe8 28. Qb4 a5 29. Qb6 b2 30. e7 {Really sharp!} ({Not} 30. Bxb7 Qa4 31. Rb1 Qa2 32. Qxb2 (32. Rxb2 $2 Rxd6 33. Rxa2 Rxb6 $19) 32... Qxb2 33. Rxb2 Rxd6 $1 34. Bxc8 Rxd4 $11) 30... Rxd6 (30... Rd7 $2 31. Bxb7 Rcc7 32. Bxc7 $18) 31. Qxd6 Bf7 {Strongly threatening ...Rc1.} 32. Ne2 {Against Rc1} ({Don't go for} 32. Bxb7 $2 Rc1 33. Ne2 {[#]} b1=Q $1 $19) 32... Rc2 33. Bf3 a4 34. Qb4 (34. Qxf6 $18 {has better winning chances. Kg2 is the strong threat.} Rd2 35. Rxd2 b1=Q+ 36. Kg2) 34... Bb3 $16 {aiming for ...Kf7.} 35. Qxb7 Rc5 $2 {[%mdl 8192] This costs Black the game.} (35... Kf7 $16 {is tougher.}) 36. Rb1 Rb5 37. Qc6 Bf7 {And now ...a3 would win.} 38. Qd6 Qb8 $2 (38... Re5 39. Rxb2 Re6) 39. Qd8+ $18 Kg7 40. Bc6 {[%cal Bf3c6,Bc6b5,Bb5d3][%mdl 32]} a3 41. Bxb5 a2 42. Bd3 {Weighted Error Value: White=0.19 (very precise) /Black=0.53} ({And not} 42. Qxb8 axb1=Q+ 43. Kg2 Qe4+ 44. f3 Qxe7 $11) 1-0

[Event "Svetozar Gligoric Masters 2022"]
[Site "Belgrade"]
[Date "2022.07.22"]
[Round "8.5"]
[White "Neelash Saha"]
[Black "Makarian, Rudik"]
[Result "1/2-1/2"]
[ECO "C54"]
[WhiteElo "2446"]
[BlackElo "2533"]
[Annotator "TA"]
[PlyCount "69"]
[EventDate "2022.07.18"]
[EventCountry "SRB"]
[SourceTitle "playchess.com"]
[Source "ChessBase"]
[SourceQuality "1"]
[TimeControl "40/5400+30:900+30"]

{[%evp 14,69,21,20,11,0,6,0,0,0,0,0,0,0,0,0,0,0,139,0,0,-25,8,4,14,8,7,0,20,0,0,0,0,0,0,0,0,0,0,0,8,0,5,0,0,0,0,0,0,0,0,0,0,0,0,0,0,0]} 1. e4 e5 2. Nf3 Nc6 3. Bc4 Bc5 4. O-O Nf6 5. Re1 O-O 6. d3 h6 7. c3 d6 8. h3 a5 {8...Bb6 is a critical line. C54: Giuoco Piano: 4 c3 Nf6, main lines with 5 d4 and 5 d3.} 9. a4 Be6 10. Bxe6 fxe6 11. Be3 Bxe3 12. Rxe3 Qd7 13. Nbd2 Rf7 14. Nf1 {[#]} Raf8 $146 ({Predecessor:} 14... b6 15. Ng3 Nh7 16. Qb3 Nf8 17. Qb5 Rd8 18. Rd1 Ng6 19. Ne2 Rdf8 20. d4 exd4 21. cxd4 Nb4 22. Qxd7 Rxd7 23. Nc3 {½-½ (25) Schmidt,J-Wanders,M freechess.de 2019}) 15. N1h2 Nh5 {[#]} (15... b6 $11) 16. g3 (16. Ng5 $1 $16 {[%mdl 512]}) 16... Nf6 $11 17. Kg2 Rb8 18. Qb3 {The position is equal.} b6 19. Rd1 Rbf8 20. Rd2 Qc8 21. Qc4 Qd7 22. Qb5 Qe8 23. Re1 Qd7 24. Qb3 Qc8 25. Qc4 Qd7 26. Qb5 Kh7 27. Qb3 Qe8 28. Rde2 Kh8 29. Qc2 Kg8 30. Qd1 Kh7 31. Rd2 Nd7 32. Re3 Ne7 33. Ng4 Nc6 34. Qc2 Kg8 35. Qd1 {Weighted Error Value: White=0.09 (flawless) /Black=0.12 (very precise)} 1/2-1/2